[Event "Early-Titled-Tuesday-Blitz-May-14-2024"]
[Site "Chess.com"]
[Date "2024.05.14"]
[Round "5"]
[White "Pedrada88"]
[Black "NinoMaisuradze"]
[Result "0-1"]
[WhiteElo "2556"]
[BlackElo "2370"]
[TimeControl "180+1"]
[EndTime "8:57:53 PDT"]
[Termination "NinoMaisuradze won by resignation"]

1. e4 {[%clk 0:03:00.9]} 1... c5 {[%clk 0:02:59.8]} 2. Nf3 {[%clk 0:03:01.1]}
2... Nc6 {[%clk 0:02:59.6]} 3. Bb5 {[%clk 0:02:59.4]} 3... g6 {[%clk 0:03:00]}
4. Bxc6 {[%clk 0:02:59.3]} 4... bxc6 {[%clk 0:02:56]} 5. O-O {[%clk 0:02:58.5]}
5... Bg7 {[%clk 0:02:56.4]} 6. Re1 {[%clk 0:02:59.2]} 6... Nh6 {[%clk
0:02:52.8]} 7. c3 {[%clk 0:02:57.6]} 7... O-O {[%clk 0:02:47.3]} 8. d4 {[%clk
0:02:57.8]} 8... cxd4 {[%clk 0:02:45.9]} 9. cxd4 {[%clk 0:02:58.7]} 9... f5
{[%clk 0:02:46.2]} 10. e5 {[%clk 0:02:57.7]} 10... Nf7 {[%clk 0:02:46.5]} 11.
Nc3 {[%clk 0:02:57.5]} 11... e6 {[%clk 0:02:42.9]} 12. h4 {[%clk 0:02:57.1]}
12... h6 {[%clk 0:02:38.7]} 13. Na4 {[%clk 0:02:47.6]} 13... g5 {[%clk 0:02:38]}
14. hxg5 {[%clk 0:02:46]} 14... hxg5 {[%clk 0:02:38.9]} 15. Nc5 {[%clk
0:02:45.4]} 15... g4 {[%clk 0:02:38.3]} 16. Nd2 {[%clk 0:02:40.8]} 16... Qh4
{[%clk 0:02:36.3]} 17. Nf1 {[%clk 0:02:39.6]} 17... Ng5 {[%clk 0:02:35.3]} 18.
Bf4 {[%clk 0:02:31.2]} 18... Bh6 {[%clk 0:02:20]} 19. Bg3 {[%clk 0:02:29.7]}
19... Qh5 {[%clk 0:02:19.5]} 20. Nd3 {[%clk 0:02:22.3]} 20... Ne4 {[%clk
0:02:18]} 21. Nf4 {[%clk 0:02:19.5]} 21... Bxf4 {[%clk 0:02:11.7]} 22. Bxf4
{[%clk 0:02:17.9]} 22... Rf7 {[%clk 0:02:09.6]} 23. Rxe4 {[%clk 0:02:07.1]}
23... fxe4 {[%clk 0:02:09.2]} 24. Bg3 {[%clk 0:01:49.3]} 24... Ba6 {[%clk
0:02:03.2]} 25. Nh2 {[%clk 0:01:39.6]} 25... Rg7 {[%clk 0:02:02.7]} 26. Qd2
{[%clk 0:01:21.3]} 26... Bd3 {[%clk 0:02:01.1]} 27. Rc1 {[%clk 0:01:12.1]} 27...
Rb8 {[%clk 0:02:00.5]} 28. Rc3 {[%clk 0:01:11.6]} 28... a6 {[%clk 0:01:56.9]}
29. a3 {[%clk 0:01:08.9]} 29... Qg5 {[%clk 0:01:47.7]} 30. Bf4 {[%clk
0:01:06.4]} 30... Qh5 {[%clk 0:01:38.7]} 31. Bg3 {[%clk 0:01:06.6]} 31... Rb5
{[%clk 0:01:35.4]} 32. b4 {[%clk 0:01:04.3]} 32... Rd5 {[%clk 0:01:35.5]} 33.
Qe3 {[%clk 0:01:01.7]} 33... Qg5 {[%clk 0:01:32.7]} 34. Bf4 {[%clk 0:01:01.6]}
34... Qd8 {[%clk 0:01:31.7]} 35. Bg3 {[%clk 0:00:42.6]} 35... a5 {[%clk
0:01:28.8]} 36. bxa5 {[%clk 0:00:14.6]} 36... Qxa5 {[%clk 0:01:29.7]} 37. Rb3
{[%clk 0:00:13.9]} 37... Rb5 {[%clk 0:01:29.7]} 38. Rxb5 {[%clk 0:00:13.2]}
38... Qxb5 {[%clk 0:01:30.6]} 39. Qc1 {[%clk 0:00:08.5]} 39... Qb1 {[%clk
0:01:29.2]} 40. Qxb1 {[%clk 0:00:08.6]} 40... Bxb1 {[%clk 0:01:30.1]} 41. Nf1
{[%clk 0:00:09.2]} 41... Bd3 {[%clk 0:01:25.1]} 42. Ne3 {[%clk 0:00:09.3]} 42...
Be2 {[%clk 0:01:25.6]} 43. Bh4 {[%clk 0:00:08.8]} 43... Kf7 {[%clk 0:01:25.6]}
44. Kh2 {[%clk 0:00:08.8]} 44... Rg8 {[%clk 0:01:26.5]} 45. Nc2 {[%clk 0:00:04]}
45... Ra8 {[%clk 0:01:26.2]} 46. Kg3 {[%clk 0:00:03.8]} 46... Bd3 {[%clk
0:01:26.7]} 47. Ne3 {[%clk 0:00:03.3]} 47... Rxa3 {[%clk 0:01:26.7]} 48. Kf4
{[%clk 0:00:03.8]} 48... Ra4 {[%clk 0:01:25.9]} 49. Nxg4 {[%clk 0:00:03.7]}
49... Rxd4 {[%clk 0:01:25.6]} 50. Ke3 {[%clk 0:00:03.7]} 50... Ra4 {[%clk
0:01:25.2]} 51. Bf6 {[%clk 0:00:04]} 51... c5 {[%clk 0:01:24.8]} 52. Nh6+ {[%clk
0:00:04.4]} 52... Kg6 {[%clk 0:01:24.8]} 53. Ng8 {[%clk 0:00:04.9]} 53... c4
{[%clk 0:01:24.2]} 54. Ne7+ {[%clk 0:00:05.3]} 54... Kf7 {[%clk 0:01:24.8]} 55.
Kd4 {[%clk 0:00:04.8]} 55... Ra8 {[%clk 0:01:23.9]} 56. g4 {[%clk 0:00:04.2]}
56... Re8 {[%clk 0:01:23.6]} 57. g5 {[%clk 0:00:04.2]} 57... Rxe7 {[%clk
0:01:23.6]} 58. g6+ {[%clk 0:00:04.8]} 58... Ke8 {[%clk 0:01:22.1]} 59. Bxe7
{[%clk 0:00:03.1]} 59... Kxe7 {[%clk 0:01:22.5]} 60. Ke3 {[%clk 0:00:03]} 60...
Kf8 {[%clk 0:01:22.1]} 61. Kd4 {[%clk 0:00:02.5]} 61... Kg7 {[%clk 0:01:22.2]}
62. Ke3 {[%clk 0:00:02.7]} 62... c3 {[%clk 0:01:22.5]} 63. Kd4 {[%clk
0:00:02.7]} 63... c2 {[%clk 0:01:23.4]} 64. Kc5 {[%clk 0:00:03]} 64... c1=Q+
{[%clk 0:01:23.2]} 65. Kd6 {[%clk 0:00:03.9]} 65... Kxg6 {[%clk 0:01:18]} 0-1

[Event "Early-Titled-Tuesday-Blitz-May-14-2024"]
[Site "Chess.com"]
[Date "2024.05.14"]
[Round "5"]
[White "TomLiu777"]
[Black "JERO-8914"]
[Result "1/2-1/2"]
[WhiteElo "2270"]
[BlackElo "2396"]
[TimeControl "180+1"]
[EndTime "8:57:54 PDT"]
[Termination "Game drawn by repetition"]

1. Nf3 {[%clk 0:01:01.7]} 1... Nf6 {[%clk 0:02:57.6]} 2. e3 {[%clk 0:00:58.5]}
2... d5 {[%clk 0:02:58.1]} 3. d4 {[%clk 0:00:58.3]} 3... c5 {[%clk 0:02:58.5]}
4. b3 {[%clk 0:00:57]} 4... Nc6 {[%clk 0:02:56.4]} 5. Bb2 {[%clk 0:00:56.6]}
5... cxd4 {[%clk 0:02:56.9]} 6. Nxd4 {[%clk 0:00:56]} 6... e6 {[%clk 0:02:54]}
7. Be2 {[%clk 0:00:54.6]} 7... Bb4+ {[%clk 0:02:54.2]} 8. c3 {[%clk 0:00:53.6]}
8... Bd6 {[%clk 0:02:54]} 9. O-O {[%clk 0:00:53.3]} 9... O-O {[%clk 0:02:53.9]}
10. Nd2 {[%clk 0:00:52.4]} 10... e5 {[%clk 0:02:53.7]} 11. Nxc6 {[%clk
0:00:45.5]} 11... bxc6 {[%clk 0:02:54.6]} 12. c4 {[%clk 0:00:46]} 12... a5
{[%clk 0:02:51.7]} 13. Nf3 {[%clk 0:00:45.2]} 13... Qe7 {[%clk 0:02:51.1]} 14.
Rc1 {[%clk 0:00:39.8]} 14... a4 {[%clk 0:02:49.8]} 15. c5 {[%clk 0:00:37]} 15...
Bc7 {[%clk 0:02:48.9]} 16. b4 {[%clk 0:00:36.8]} 16... a3 {[%clk 0:02:48.7]} 17.
Ba1 {[%clk 0:00:27.9]} 17... Bd7 {[%clk 0:02:44.3]} 18. Qb3 {[%clk 0:00:23.8]}
18... Rfb8 {[%clk 0:02:39.6]} 19. Rfd1 {[%clk 0:00:24.2]} 19... Ne4 {[%clk
0:02:38]} 20. Nd2 {[%clk 0:00:21.8]} 20... f5 {[%clk 0:02:33]} 21. Nxe4 {[%clk
0:00:19.7]} 21... fxe4 {[%clk 0:02:33.9]} 22. b5 {[%clk 0:00:17.1]} 22... Kh8
{[%clk 0:02:31.3]} 23. b6 {[%clk 0:00:16.9]} 23... Bd8 {[%clk 0:02:28.8]} 24.
Qc3 {[%clk 0:00:17.5]} 24... Qf7 {[%clk 0:01:42.4]} 25. Qxe5 {[%clk 0:00:16.1]}
25... Bf6 {[%clk 0:01:37.4]} 26. Qf4 {[%clk 0:00:16.3]} 26... Kg8 {[%clk
0:01:31.3]} 27. Bxf6 {[%clk 0:00:15.6]} 27... gxf6 {[%clk 0:01:31.9]} 28. Rb1
{[%clk 0:00:13.4]} 28... Rb7 {[%clk 0:01:21.3]} 29. Rd4 {[%clk 0:00:13.4]} 29...
Qe7 {[%clk 0:01:19.6]} 30. Qg3+ {[%clk 0:00:12.2]} 30... Kh8 {[%clk 0:01:17.7]}
31. Qd6 {[%clk 0:00:12]} 31... Qxd6 {[%clk 0:01:16.1]} 32. cxd6 {[%clk
0:00:12.9]} 32... Rab8 {[%clk 0:01:12]} 33. Rdb4 {[%clk 0:00:13.1]} 33... c5
{[%clk 0:01:10.8]} 34. R4b3 {[%clk 0:00:13.7]} 34... c4 {[%clk 0:01:09.2]} 35.
Rxa3 {[%clk 0:00:14.2]} 35... Rxb6 {[%clk 0:01:05.7]} 36. Rxb6 {[%clk
0:00:15.1]} 36... Rxb6 {[%clk 0:01:06.2]} 37. Ra8+ {[%clk 0:00:15.3]} 37... Kg7
{[%clk 0:01:04.3]} 38. Ra7 {[%clk 0:00:16.2]} 38... Kf7 {[%clk 0:01:01.5]} 39.
Rxd7+ {[%clk 0:00:13.9]} 39... Ke6 {[%clk 0:01:01.8]} 40. Rxh7 {[%clk
0:00:09.5]} 40... Rb1+ {[%clk 0:00:58.8]} 41. Bf1 {[%clk 0:00:09.3]} 41... Kxd6
{[%clk 0:00:58.2]} 42. Rh8 {[%clk 0:00:07.2]} 42... Kd7 {[%clk 0:00:54.9]} 43.
Rh7+ {[%clk 0:00:07.1]} 43... Kd6 {[%clk 0:00:54.9]} 44. Rh8 {[%clk 0:00:07.7]}
44... Kd7 {[%clk 0:00:55.3]} 45. Ra8 {[%clk 0:00:05]} 45... c3 {[%clk
0:00:50.1]} 46. Ra7+ {[%clk 0:00:05.5]} 46... Kd6 {[%clk 0:00:48]} 47. Ra6+
{[%clk 0:00:05.8]} 47... Kd7 {[%clk 0:00:45.1]} 48. Ra7+ {[%clk 0:00:06.1]}
48... Kd6 {[%clk 0:00:44.1]} 49. Ra6+ {[%clk 0:00:06.3]} 49... Kd7 {[%clk
0:00:44.2]} 50. Ra7+ {[%clk 0:00:03.7]} 1/2-1/2

[Event "Early-Titled-Tuesday-Blitz-May-14-2024"]
[Site "Chess.com"]
[Date "2024.05.14"]
[Round "5"]
[White "TigranMukhutdinov"]
[Black "alexrustemov"]
[Result "0-1"]
[WhiteElo "2718"]
[BlackElo "2934"]
[TimeControl "180+1"]
[EndTime "8:57:55 PDT"]
[Termination "alexrustemov won by resignation"]

1. Nf3 {[%clk 0:03:00.9]} 1... d5 {[%clk 0:02:59.6]} 2. g3 {[%clk 0:03:00.8]}
2... c6 {[%clk 0:03:00]} 3. Bg2 {[%clk 0:02:59.4]} 3... Bf5 {[%clk 0:03:00.5]}
4. O-O {[%clk 0:02:59.6]} 4... e6 {[%clk 0:03:01]} 5. c4 {[%clk 0:02:59.6]} 5...
dxc4 {[%clk 0:03:00.4]} 6. a4 {[%clk 0:02:45.4]} 6... Nf6 {[%clk 0:02:58.1]} 7.
Na3 {[%clk 0:02:45.3]} 7... Bxa3 {[%clk 0:02:56.4]} 8. Rxa3 {[%clk 0:02:43.5]}
8... O-O {[%clk 0:02:51.6]} 9. a5 {[%clk 0:02:34.4]} 9... Be4 {[%clk 0:02:44.5]}
10. Rc3 {[%clk 0:02:26.2]} 10... Bd5 {[%clk 0:02:41.6]} 11. Qa4 {[%clk
0:02:24.9]} 11... Nbd7 {[%clk 0:02:32.3]} 12. Qa3 {[%clk 0:02:11.8]} 12... b5
{[%clk 0:02:29.5]} 13. d3 {[%clk 0:02:00.5]} 13... c5 {[%clk 0:02:20.5]} 14. Rc2
{[%clk 0:01:24.8]} 14... cxd3 {[%clk 0:02:12.9]} 15. exd3 {[%clk 0:01:22.8]}
15... c4 {[%clk 0:01:58.6]} 16. dxc4 {[%clk 0:01:21]} 16... bxc4 {[%clk
0:01:57.1]} 17. Be3 {[%clk 0:01:17.9]} 17... a6 {[%clk 0:01:45.5]} 18. Nd2
{[%clk 0:01:17.4]} 18... Rc8 {[%clk 0:01:36.8]} 19. Bxd5 {[%clk 0:01:12.9]}
19... exd5 {[%clk 0:01:33.2]} 20. Bd4 {[%clk 0:01:12]} 20... Re8 {[%clk
0:01:28.7]} 21. Rfc1 {[%clk 0:00:59.9]} 21... Ne5 {[%clk 0:01:26.6]} 22. b3
{[%clk 0:00:58.7]} 22... Nd3 {[%clk 0:01:12.4]} 23. Rf1 {[%clk 0:00:55.7]} 23...
Ne4 {[%clk 0:01:07.3]} 24. Bb6 {[%clk 0:00:41.4]} 24... Qd7 {[%clk 0:00:54.9]}
25. Nxe4 {[%clk 0:00:36.5]} 25... Rxe4 {[%clk 0:00:52]} 26. bxc4 {[%clk
0:00:33.7]} 26... dxc4 {[%clk 0:00:51.9]} 27. Qc3 {[%clk 0:00:32.5]} 27... h5
{[%clk 0:00:47.1]} 28. Rd1 {[%clk 0:00:28.8]} 28... Rce8 {[%clk 0:00:43.6]} 29.
Be3 {[%clk 0:00:19.4]} 29... h4 {[%clk 0:00:39.8]} 30. Qd2 {[%clk 0:00:12.4]}
30... h3 {[%clk 0:00:37]} 31. Qe2 {[%clk 0:00:12.6]} 31... Qf5 {[%clk
0:00:31.6]} 32. Qf1 {[%clk 0:00:12.2]} 32... Ne5 {[%clk 0:00:26.1]} 33. Re2
{[%clk 0:00:10.4]} 33... Qf3 {[%clk 0:00:18.3]} 34. Rde1 {[%clk 0:00:09.7]}
34... Nd3 {[%clk 0:00:16.1]} 35. Rd1 {[%clk 0:00:10.3]} 35... f5 {[%clk
0:00:13]} 36. Rc2 {[%clk 0:00:09]} 36... f4 {[%clk 0:00:13]} 37. gxf4 {[%clk
0:00:09.5]} 37... Nxf4 {[%clk 0:00:12.7]} 38. Rxc4 {[%clk 0:00:10.1]} 38... Qg4+
{[%clk 0:00:06.5]} 39. Kh1 {[%clk 0:00:10.1]} 39... Qg2+ {[%clk 0:00:06.9]} 40.
Qxg2 {[%clk 0:00:10.3]} 40... hxg2+ {[%clk 0:00:07.4]} 41. Kg1 {[%clk
0:00:11.1]} 41... Rxc4 {[%clk 0:00:08]} 0-1

[Event "Early-Titled-Tuesday-Blitz-May-14-2024"]
[Site "Chess.com"]
[Date "2024.05.14"]
[Round "5"]
[White "Payyappat"]
[Black "NikitaShnadrygin"]
[Result "0-1"]
[WhiteElo "2526"]
[BlackElo "2732"]
[TimeControl "180+1"]
[EndTime "8:57:58 PDT"]
[Termination "NikitaShnadrygin won on time"]

1. e4 {[%clk 0:03:00.9]} 1... c5 {[%clk 0:02:56.3]} 2. Nf3 {[%clk 0:03:00.2]}
2... e6 {[%clk 0:02:56.5]} 3. d4 {[%clk 0:03:00]} 3... cxd4 {[%clk 0:02:57.4]}
4. Nxd4 {[%clk 0:03:00.2]} 4... Nf6 {[%clk 0:02:58.1]} 5. Nc3 {[%clk 0:02:59.3]}
5... Nc6 {[%clk 0:02:58.7]} 6. f4 {[%clk 0:02:58.1]} 6... Bb4 {[%clk 0:02:56.6]}
7. Nxc6 {[%clk 0:02:55.5]} 7... bxc6 {[%clk 0:02:57.5]} 8. Bd3 {[%clk
0:02:54.3]} 8... d5 {[%clk 0:02:51.9]} 9. e5 {[%clk 0:02:52.8]} 9... Nd7 {[%clk
0:02:52.1]} 10. O-O {[%clk 0:02:52]} 10... a5 {[%clk 0:02:31.5]} 11. Be3 {[%clk
0:02:49.3]} 11... Ba6 {[%clk 0:02:17.2]} 12. f5 {[%clk 0:02:45.6]} 12... Bxd3
{[%clk 0:01:59.1]} 13. Qxd3 {[%clk 0:02:44.7]} 13... Nxe5 {[%clk 0:01:54.6]} 14.
Qd4 {[%clk 0:02:44.1]} 14... f6 {[%clk 0:01:37.7]} 15. fxe6 {[%clk 0:02:40.2]}
15... Qe7 {[%clk 0:01:33.3]} 16. a3 {[%clk 0:02:24.3]} 16... Bd6 {[%clk
0:01:29.5]} 17. Kh1 {[%clk 0:02:05.1]} 17... O-O {[%clk 0:01:27.6]} 18. Rad1
{[%clk 0:02:02.9]} 18... Qxe6 {[%clk 0:01:27.7]} 19. Bf4 {[%clk 0:02:01.2]}
19... Rfe8 {[%clk 0:01:18]} 20. Rde1 {[%clk 0:01:46.6]} 20... Rab8 {[%clk
0:01:07.1]} 21. Na4 {[%clk 0:01:45.3]} 21... Qd7 {[%clk 0:00:56.8]} 22. Nc5
{[%clk 0:01:39.1]} 22... Qa7 {[%clk 0:00:54]} 23. b4 {[%clk 0:01:23.8]} 23...
axb4 {[%clk 0:00:50.8]} 24. axb4 {[%clk 0:01:24.7]} 24... Qe7 {[%clk 0:00:28.7]}
25. Nd3 {[%clk 0:01:07.7]} 25... Qc7 {[%clk 0:00:27.6]} 26. Nc5 {[%clk
0:00:56.7]} 26... Qe7 {[%clk 0:00:22.4]} 27. Nd3 {[%clk 0:00:54.6]} 27... Qc7
{[%clk 0:00:14]} 28. Nc5 {[%clk 0:00:53]} 28... Qb6 {[%clk 0:00:14.5]} 29. c3
{[%clk 0:00:47.7]} 29... Bxc5 {[%clk 0:00:14.9]} 30. bxc5 {[%clk 0:00:39.2]}
30... Qb5 {[%clk 0:00:14.9]} 31. Kg1 {[%clk 0:00:34.3]} 31... Nd3 {[%clk
0:00:09.4]} 32. Bxb8 {[%clk 0:00:13]} 32... Nxe1 {[%clk 0:00:09.1]} 33. Bd6
{[%clk 0:00:12.6]} 33... Nc2 {[%clk 0:00:08.7]} 34. Qg4 {[%clk 0:00:11.7]} 34...
Qe2 {[%clk 0:00:06.8]} 35. Qxe2 {[%clk 0:00:11.1]} 35... Rxe2 {[%clk 0:00:06.2]}
36. Rb1 {[%clk 0:00:10.6]} 36... Re1+ {[%clk 0:00:06.5]} 37. Rxe1 {[%clk
0:00:09.5]} 37... Nxe1 {[%clk 0:00:07.4]} 38. Kf2 {[%clk 0:00:09]} 38... Nd3+
{[%clk 0:00:08.1]} 0-1

[Event "Early-Titled-Tuesday-Blitz-May-14-2024"]
[Site "Chess.com"]
[Date "2024.05.14"]
[Round "5"]
[White "lamomiajunior"]
[Black "SuperJesus88"]
[Result "1-0"]
[WhiteElo "2776"]
[BlackElo "2528"]
[TimeControl "180+1"]
[EndTime "8:57:59 PDT"]
[Termination "lamomiajunior won by checkmate"]

1. d4 {[%clk 0:03:00.9]} 1... d6 {[%clk 0:02:55.3]} 2. e4 {[%clk 0:03:00]} 2...
Nf6 {[%clk 0:02:55.5]} 3. Nc3 {[%clk 0:02:59.6]} 3... e5 {[%clk 0:02:56.1]} 4.
Nf3 {[%clk 0:02:59.4]} 4... Nbd7 {[%clk 0:02:55.9]} 5. a4 {[%clk 0:02:59.8]}
5... Be7 {[%clk 0:02:56]} 6. Bc4 {[%clk 0:03:00.3]} 6... O-O {[%clk 0:02:56.1]}
7. O-O {[%clk 0:03:01]} 7... c6 {[%clk 0:02:56.7]} 8. Re1 {[%clk 0:03:00.7]}
8... b6 {[%clk 0:02:56.6]} 9. h3 {[%clk 0:03:00.2]} 9... a6 {[%clk 0:02:56.9]}
10. b3 {[%clk 0:02:59.9]} 10... Bb7 {[%clk 0:02:56.3]} 11. Bf1 {[%clk
0:02:58.9]} 11... b5 {[%clk 0:02:56.4]} 12. Bb2 {[%clk 0:02:57.9]} 12... Qc7
{[%clk 0:02:56]} 13. axb5 {[%clk 0:02:52.4]} 13... axb5 {[%clk 0:02:55.5]} 14.
Rxa8 {[%clk 0:02:50.7]} 14... Rxa8 {[%clk 0:02:54.9]} 15. d5 {[%clk 0:02:39.8]}
15... cxd5 {[%clk 0:02:36.6]} 16. Nxb5 {[%clk 0:01:57.3]} 16... Qb6 {[%clk
0:02:30.8]} 17. exd5 {[%clk 0:01:54.8]} 17... Nxd5 {[%clk 0:02:05]} 18. c4
{[%clk 0:01:51]} 18... Nf4 {[%clk 0:02:03.3]} 19. g3 {[%clk 0:01:23.7]} 19...
Ne6 {[%clk 0:01:59.7]} 20. Bg2 {[%clk 0:01:20]} 20... Ndc5 {[%clk 0:01:56.6]}
21. b4 {[%clk 0:00:51.8]} 21... Nd7 {[%clk 0:01:21.4]} 22. Nd2 {[%clk
0:00:34.8]} 22... Bxg2 {[%clk 0:01:18.5]} 23. Kxg2 {[%clk 0:00:35.7]} 23... Nf6
{[%clk 0:01:10.5]} 24. Qf3 {[%clk 0:00:32.5]} 24... Rc8 {[%clk 0:01:09.6]} 25.
Qe3 {[%clk 0:00:29.4]} 25... Qb7+ {[%clk 0:01:02.7]} 26. Kg1 {[%clk 0:00:28.9]}
26... d5 {[%clk 0:00:47.4]} 27. Qxe5 {[%clk 0:00:17.1]} 27... dxc4 {[%clk
0:00:44.2]} 28. Bc3 {[%clk 0:00:16.4]} 28... Nd7 {[%clk 0:00:28.1]} 29. Nd6
{[%clk 0:00:16]} 29... Nxe5 {[%clk 0:00:09.9]} 30. Nxb7 {[%clk 0:00:15.6]} 30...
Nd3 {[%clk 0:00:10.8]} 31. Rb1 {[%clk 0:00:14.9]} 31... Rb8 {[%clk 0:00:11.4]}
32. Na5 {[%clk 0:00:14]} 32... Nxb4 {[%clk 0:00:08.5]} 33. Ndxc4 {[%clk
0:00:13.4]} 33... h5 {[%clk 0:00:07.5]} 34. Be5 {[%clk 0:00:12.5]} 34... Rb5
{[%clk 0:00:07.1]} 35. Bc3 {[%clk 0:00:12.3]} 35... Kh7 {[%clk 0:00:06.5]} 36.
Nc6 {[%clk 0:00:12.5]} 36... Nxc6 {[%clk 0:00:04.9]} 37. Rxb5 {[%clk 0:00:12.1]}
37... Nc5 {[%clk 0:00:04.5]} 38. Ne5 {[%clk 0:00:10.2]} 38... Nxe5 {[%clk
0:00:02.2]} 39. Bxe5 {[%clk 0:00:11.1]} 39... Ne4 {[%clk 0:00:02]} 40. Bd4
{[%clk 0:00:09.8]} 40... g6 {[%clk 0:00:01.9]} 41. Rb8 {[%clk 0:00:09.6]} 41...
Bd6 {[%clk 0:00:02.1]} 42. Rh8# {[%clk 0:00:09.2]} 1-0

[Event "Early-Titled-Tuesday-Blitz-May-14-2024"]
[Site "Chess.com"]
[Date "2024.05.14"]
[Round "5"]
[White "AnishOnYoutube"]
[Black "the_chess_child"]
[Result "0-1"]
[WhiteElo "3010"]
[BlackElo "2885"]
[TimeControl "180+1"]
[EndTime "8:58:00 PDT"]
[Termination "the_chess_child won by resignation"]

1. Nf3 {[%clk 0:03:00.9]} 1... Nf6 {[%clk 0:02:59.8]} 2. c4 {[%clk 0:03:01.3]}
2... g6 {[%clk 0:02:59.8]} 3. Nc3 {[%clk 0:02:58.5]} 3... Bg7 {[%clk 0:03:00]}
4. g3 {[%clk 0:02:59.2]} 4... O-O {[%clk 0:02:59.4]} 5. Bg2 {[%clk 0:02:59.7]}
5... d6 {[%clk 0:02:59.5]} 6. O-O {[%clk 0:02:59.9]} 6... e5 {[%clk 0:02:59.3]}
7. d3 {[%clk 0:03:00.4]} 7... Nc6 {[%clk 0:02:56.7]} 8. Rb1 {[%clk 0:03:00.8]}
8... a5 {[%clk 0:02:45.8]} 9. a3 {[%clk 0:03:01.2]} 9... h6 {[%clk 0:02:39]} 10.
b4 {[%clk 0:03:00.6]} 10... axb4 {[%clk 0:02:39.2]} 11. axb4 {[%clk 0:03:01.5]}
11... Be6 {[%clk 0:02:39.7]} 12. b5 {[%clk 0:03:01.2]} 12... Ne7 {[%clk
0:02:40]} 13. Qb3 {[%clk 0:03:00.1]} 13... Qd7 {[%clk 0:02:39.2]} 14. Re1 {[%clk
0:02:48.5]} 14... Nh5 {[%clk 0:02:24.4]} 15. Bb2 {[%clk 0:02:46.5]} 15... Kh7
{[%clk 0:02:22.1]} 16. Ra1 {[%clk 0:02:44.5]} 16... Bh3 {[%clk 0:02:12.3]} 17.
Bh1 {[%clk 0:02:38]} 17... f5 {[%clk 0:02:12]} 18. Ra2 {[%clk 0:01:52.1]} 18...
f4 {[%clk 0:02:09.2]} 19. Ne4 {[%clk 0:01:49.1]} 19... c6 {[%clk 0:01:19.3]} 20.
bxc6 {[%clk 0:01:31.5]} 20... bxc6 {[%clk 0:01:17]} 21. Rea1 {[%clk 0:01:26.3]}
21... Rxa2 {[%clk 0:01:00.5]} 22. Qxa2 {[%clk 0:01:25.8]} 22... d5 {[%clk
0:01:00.8]} 23. Ned2 {[%clk 0:00:53.9]} 23... fxg3 {[%clk 0:00:42.5]} 24. hxg3
{[%clk 0:00:49.5]} 24... Nxg3 {[%clk 0:00:42.6]} 25. fxg3 {[%clk 0:00:47.4]}
25... Qg4 {[%clk 0:00:42.7]} 26. Nf1 {[%clk 0:00:25.4]} 26... Nf5 {[%clk
0:00:34.6]} 27. Bxe5 {[%clk 0:00:25.2]} 27... Bxf1 {[%clk 0:00:30.1]} 28. Rxf1
{[%clk 0:00:25.1]} 28... Bxe5 {[%clk 0:00:25.4]} 29. Nxe5 {[%clk 0:00:22.2]}
29... Qxg3+ {[%clk 0:00:23.7]} 30. Bg2 {[%clk 0:00:22.8]} 30... Qe3+ {[%clk
0:00:23.4]} 31. Kh2 {[%clk 0:00:19.4]} 31... Qxe5+ {[%clk 0:00:23.3]} 32. Kg1
{[%clk 0:00:20]} 32... Qd4+ {[%clk 0:00:23.3]} 33. Kh2 {[%clk 0:00:20.4]} 33...
Re8 {[%clk 0:00:17.6]} 34. cxd5 {[%clk 0:00:19.3]} 34... cxd5 {[%clk 0:00:15.1]}
35. Qxd5 {[%clk 0:00:19.5]} 35... Qxd5 {[%clk 0:00:10.6]} 36. Bxd5 {[%clk
0:00:20.4]} 36... Rxe2+ {[%clk 0:00:11.1]} 37. Kg1 {[%clk 0:00:21]} 37... h5
{[%clk 0:00:11]} 38. Be4 {[%clk 0:00:21.5]} 38... Ng3 {[%clk 0:00:10.9]} 39.
Rf7+ {[%clk 0:00:19.6]} 39... Kh6 {[%clk 0:00:11.2]} 40. Bf3 {[%clk 0:00:19.9]}
40... Rd2 {[%clk 0:00:11.2]} 41. Rd7 {[%clk 0:00:16.2]} 41... h4 {[%clk
0:00:11.4]} 42. Rd6 {[%clk 0:00:16.8]} 42... h3 {[%clk 0:00:11.3]} 0-1